bitfinex-derivatives/quotes_BTCF0:USTF0_20241110
["timestamp","ask_amount","ask_price","bid_price","bid_amount"]
[1731239383230,0.03836214,79978.0,79977.0,0.00237]
[1731239383627,0.0689649,79978.0,79977.0,0.00237]
[1731239383822,0.26631715,79984.0,79977.0,0.00237]
[1731239383823,0.0689649,79983.0,79977.0,0.00237]
[1731239385725,0.0689649,79983.0,79978.0,0.3608]
[1731239386525,0.03060276,79982.0,79978.0,0.3608]
[1731239386838,0.26631715,79984.0,79978.0,0.3608]
[1731239386839,0.06896406,79981.0,79978.0,0.3608]
[1731239387025,0.06896406,79980.0,79978.0,0.3608]
[1731239387333,0.06896406,79979.0,79978.0,0.3608]
[1731239387627,0.06896406,79983.0,79978.0,0.3608]
[1731239387832,0.06896406,79982.0,79978.0,0.3608]
[1731239388027,0.04860859,79989.0,79978.0,0.4303]
[1731239388230,0.03060406,79988.0,79978.0,0.4303]
[1731239388428,0.38581085,79991.0,79978.0,0.4303]
[1731239388629,0.03060409,79990.0,79978.0,0.4303]
[1731239388931,0.38581085,79991.0,79978.0,0.4303]
[1731239389121,0.03060359,79990.0,79978.0,0.4303]
[1731239389324,0.38581085,79991.0,79978.0,0.4303]
[1731239389325,0.4363059,79991.0,79978.0,0.4303]
[1731239390036,0.03060357,79990.0,79978.0,0.45530687]
[1731239390230,0.03060357,79989.0,79978.0,0.45530687]
[1731239390535,0.4363059,79991.0,79978.0,0.45530687]
[1731239390840,0.03060339,79990.0,79978.0,0.45530687]
[1731239391134,0.4363059,79991.0,79978.0,0.45530687]
[1731239391135,0.03060336,79989.0,79978.0,0.45530687]
[1731239391330,0.0712,79993.0,79987.0,0.3608]
[1731239391530,0.0726,80004.0,79987.0,0.2782771]
[1731239391737,0.06895734,80003.0,79987.0,0.2782771]
[1731239392038,0.02501085,80001.0,79987.0,0.2782771]
[1731239393836,0.03059935,80000.0,79987.0,0.2782771]
[1731239394032,0.03059935,79999.0,79987.0,0.2782771]
[1731239394233,0.03059935,79998.0,79987.0,0.2782771]
[1731239394439,0.02501085,80001.0,79987.0,0.2782771]
[1731239394627,0.03059941,80000.0,79987.0,0.2782771]
[1731239394837,0.03059941,79999.0,79987.0,0.2782771]
[1731239395141,0.02501085,80001.0,79987.0,0.2782771]
[1731239395440,0.03060007,80000.0,79987.0,0.2782771]
[1731239395634,0.03060007,79999.0,79987.0,0.2782771]
[1731239395933,0.3608,80000.0,79987.0,0.2782771]
[1731239396136,0.03060139,79999.0,79987.0,0.2782771]
[1731239396440,0.03060151,79998.0,79987.0,0.2782771]
[1731239396737,0.03060151,79997.0,79987.0,0.2782771]
[1731239396938,0.02501085,80001.0,79987.0,0.2782771]
[1731239397139,0.03060185,80000.0,79988.0,0.0694]
[1731239397437,0.0305989,79999.0,79988.0,0.0694]
[1731239397740,0.0728,80003.0,79988.0,0.0694]
[1731239397741,0.0305989,79998.0,79988.0,0.0694]
[1731239397931,0.0728,80003.0,79988.0,0.0694]
[1731239398132,0.03059848,80002.0,79988.0,0.0694]
[1731239398436,0.0728,80003.0,79988.0,0.0694]
[1731239398437,0.03059848,80001.0,79988.0,0.0694]
[1731239398636,0.0728,80003.0,79988.0,0.0694]
[1731239399135,0.0728,80003.0,79988.0,0.1413]
[1731239399136,0.03059775,80002.0,79988.0,0.1413]
[1731239399336,0.03059775,80001.0,79988.0,0.1413]
[1731239399535,0.03059775,80000.0,79988.0,0.1413]
[1731239399738,0.03059732,79999.0,79988.0,0.1413]
[1731239399935,0.0726,80004.0,79998.0,0.3608]
[1731239400134,0.03059668,80003.0,79995.0,0.3608]
[1731239400337,0.03059668,80002.0,79995.0,0.3608]
[1731239400536,0.03059668,80001.0,79995.0,0.3608]
[1731239400737,0.03059668,80000.0,79995.0,0.3608]
[1731239400930,0.02500389,80005.0,79995.0,0.3608]
[1731239401140,0.03059768,80004.0,79995.0,0.3608]
[1731239401338,0.03059768,80003.0,79995.0,0.3608]
[1731239401540,0.03059768,80002.0,79995.0,0.3608]
[1731239401736,0.03059768,80001.0,79995.0,0.3608]
[1731239402041,0.02500389,80005.0,79995.0,0.3608]
[1731239402339,0.03059769,80004.0,79995.0,0.3608]
[1731239402643,0.3608,80002.0,79995.0,0.3608]
[1731239402837,0.3608,80002.0,79988.0,0.0694]
[1731239403036,0.03059927,80001.0,79988.0,0.0694]
[1731239403238,0.03059927,80000.0,79988.0,0.0694]
[1731239403440,0.03059927,79999.0,79988.0,0.0694]
[1731239403637,0.03059927,79998.0,79988.0,0.0694]
[1731239403848,0.03059927,79997.0,79988.0,0.0694]
[1731239404032,0.09839927,79996.0,79988.0,0.0694]
[1731239404236,0.03059927,79995.0,79988.0,0.0694]
[1731239404642,0.06895351,79995.0,79988.0,0.0694]
[1731239405449,0.03059927,79994.0,79988.0,0.0694]
[1731239405631,0.03059927,79993.0,79988.0,0.0694]
[1731239405835,0.03059927,79992.0,79988.0,0.0694]
[1731239406032,0.03059927,79991.0,79988.0,0.0694]
[1731239406234,0.3608,79995.0,79987.0,0.3608]
[1731239406235,0.06895528,79990.0,79987.0,0.3608]
[1731239406435,0.06895528,79989.0,79980.0,0.3608]
[1731239406640,0.0716,79994.0,79978.0,0.02500687]
[1731239406641,0.3608,79981.0,79978.0,0.02500687]
[1731239406841,0.42975528,79988.0,79978.0,0.02500687]
[1731239406842,0.10059927,79980.0,79978.0,0.02500687]
[1731239407141,0.09859927,79979.0,79978.0,0.02500687]
[1731239408039,0.13696318,79979.0,79962.0,0.31544978]
[1731239408240,0.23597307,79978.0,79962.0,0.31544978]
[1731239408543,0.03059927,79977.0,79962.0,0.31544978]
[1731239409245,0.0689634,79977.0,79962.0,0.31544978]
[1731239411038,0.0682,79978.0,79962.0,0.31544978]
[1731239411433,0.3608,79970.0,79962.0,0.31544978]
[1731239411642,0.3608,79970.0,79954.0,0.3608]
[1731239411836,0.03070111,79969.0,79957.0,0.0168942]
[1731239412037,0.3608,79966.0,79957.0,0.0168942]
[1731239414243,0.03061274,79965.0,79957.0,0.0168942]
[1731239414446,0.4107715,79966.0,79957.0,0.0168942]
[1731239414643,0.0713,79964.0,79957.0,0.0168942]
[1731239416249,0.0713,79964.0,79957.0,0.01253593]
[1731239418577,0.03061149,79963.0,79957.0,0.01253593]
[1731239418853,0.0713,79964.0,79957.0,0.01253593]
[1731239419046,0.1402,79962.0,79957.0,0.01253593]
[1731239419343,0.3608,79959.0,79957.0,0.01253593]
[1731239419844,0.1402,79962.0,79957.0,0.01253593]
[1731239421243,0.501,79962.0,79957.0,0.01253593]
[1731239421740,0.1402,79962.0,79957.0,0.01253593]
[1731239422546,0.02501675,79961.0,79957.0,0.01253593]
[1731239426055,0.02501675,79961.0,79958.0,0.3608]
[1731239427454,0.0499715,79966.0,79960.0,0.3608]
[1731239427746,8.968e-05,79969.0,79960.0,0.3608]
[1731239428143,0.04915704,79969.0,79960.0,0.3608]
[1731239429057,8.968e-05,79969.0,79960.0,0.3608]
[1731239429350,8.968e-05,79969.0,79967.0,0.3608]
[1731239430449,8.968e-05,79969.0,79968.0,0.0678]
[1731239431348,8.968e-05,79969.0,79968.0,0.44296]
[1731239432447,8.968e-05,79969.0,79968.0,0.0678]
[1731239433856,8.968e-05,79969.0,79967.0,0.3608]
[1731239437762,8.968e-05,79969.0,79967.0,0.73596]
[1731239438153,8.968e-05,79969.0,79967.0,0.3608]
[1731239439060,8.968e-05,79969.0,79964.0,0.3608]
[1731239440050,0.04995725,79969.0,79964.0,0.3608]
[1731239440256,0.1648095,79968.0,79964.0,0.3608]
[1731239440459,0.0306095,79967.0,79964.0,0.3608]
[1731239440766,0.0306095,79966.0,79964.0,0.3608]
[1731239440949,0.0306095,79965.0,79964.0,0.3608]
[1731239441154,0.1342,79968.0,79964.0,0.3608]
[1731239446670,0.1342,79968.0,79964.0,0.2532]
[1731239446870,0.1342,79968.0,79952.0,0.3608]
[1731239447263,0.1342,79968.0,79878.0,0.01876]
[1731239447264,0.3608,79959.0,79938.0,0.3608]
[1731239447473,0.29564915,79958.0,79945.0,0.3608]
[1731239447968,0.40585553,79957.0,79945.0,0.3608]
[1731239448270,0.40585553,79957.0,79938.0,0.3608]
[1731239448271,0.3608,79951.0,79929.0,0.3608]
[1731239448668,0.6608,79951.0,79929.0,0.3608]
[1731239448865,0.3608,79951.0,79929.0,0.3608]
[1731239449177,0.29564915,79958.0,79929.0,0.3608]
[1731239449367,0.59564915,79958.0,79929.0,0.3608]
[1731239449770,0.0681,79957.0,79929.0,0.3608]
[1731239449967,0.3608,79941.0,79929.0,0.3608]
[1731239450173,0.00013735,79940.0,79929.0,0.3608]
[1731239451365,0.00013735,79940.0,79936.0,0.3608]
[1731239452766,0.06983735,79940.0,79936.0,0.3608]
[1731239452971,0.0711,79939.0,79936.0,0.3608]
[1731239454272,0.02501482,79937.0,79936.0,0.3608]
[1731239458967,0.02501482,79937.0,79925.0,0.00187708]
[1731239459175,0.02501482,79937.0,79936.0,0.3608]
[1731239461182,0.04978595,79940.0,79936.0,0.3608]
[1731239461481,0.04978595,79940.0,79937.0,0.2045]
[1731239462071,0.00013735,79940.0,79937.0,0.2045]
[1731239462477,0.00187709,79953.0,79937.0,0.2045]
[1731239462478,0.00187709,79953.0,79939.0,0.3608]
[1731239462671,0.05112583,79953.0,79939.0,0.3608]
[1731239462875,0.02501995,79952.0,79939.0,0.3608]
[1731239463077,0.23111995,79952.0,79939.0,0.3608]
[1731239463280,0.21736,79951.0,79939.0,0.3608]
[1731239463882,0.3608,79948.0,79939.0,0.3608]
[1731239464072,0.00637383,79948.0,79939.0,0.3608]
[1731239464381,0.3608,79949.0,79939.0,0.3608]
[1731239465481,0.21736,79951.0,79939.0,0.3608]
[1731239466175,0.02501995,79952.0,79940.0,0.2067]
[1731239469987,0.38581995,79952.0,79940.0,0.2067]
[1731239470286,0.02501995,79952.0,79939.0,0.3608]
[1731239471286,0.06899211,79951.0,79939.0,0.3608]
[1731239471485,0.02501995,79952.0,79939.0,0.3608]
[1731239471486,0.03061646,79950.0,79939.0,0.3608]
[1731239471688,0.03061646,79949.0,79939.0,0.3608]
[1731239471990,0.03061584,79948.0,79939.0,0.3608]
[1731239472185,0.00625829,79948.0,79939.0,0.3608]
[1731239472392,0.03061643,79947.0,79939.0,0.3608]
[1731239472693,0.03061643,79946.0,79939.0,0.3608]
[1731239472912,0.00616198,79947.0,79939.0,0.3608]
[1731239472913,0.02501567,79942.0,79939.0,0.3608]
[1731239473085,0.0306163,79941.0,79939.0,0.3608]
[1731239473386,0.0306163,79940.0,79939.0,0.3608]
[1731239474595,0.02501567,79942.0,79939.0,0.3608]
[1731239475192,0.03061375,79941.0,79939.0,0.3608]
[1731239475389,0.02501567,79942.0,79939.0,0.3608]
[1731239476189,0.02501995,79952.0,79939.0,0.3608]
[1731239476394,0.06898418,79951.0,79947.0,0.3608]
[1731239476699,0.03061294,79950.0,79947.0,0.3608]
[1731239476904,0.02501995,79952.0,79947.0,0.3608]
[1731239476905,0.068984,79949.0,79947.0,0.3608]
[1731239477198,0.06898284,79948.0,79947.0,0.3608]
[1731239477383,0.03061294,79948.0,79947.0,0.3608]
[1731239478189,0.02501995,79952.0,79947.0,0.3608]
[1731239479793,0.25819459,79963.0,79947.0,0.3608]
[1731239480592,0.03061126,79962.0,79947.0,0.3608]
[1731239480798,0.03061126,79961.0,79947.0,0.3608]
[1731239480988,0.03061126,79960.0,79947.0,0.3608]
[1731239481188,0.25819459,79963.0,79947.0,0.3608]
[1731239481803,0.04935459,79963.0,79947.0,0.3608]
[1731239481996,0.38581995,79965.0,79947.0,0.3608]
[1731239482500,0.0306106,79964.0,79947.0,0.3608]
[1731239482695,0.0306106,79963.0,79947.0,0.3608]
[1731239482897,0.0306106,79962.0,79947.0,0.3608]
[1731239483195,0.43570311,79965.0,79958.0,0.3608]
[1731239486395,0.03060928,79964.0,79958.0,0.3608]
[1731239486595,0.43570311,79965.0,79958.0,0.3608]
[1731239493401,0.3608,79959.0,79935.0,0.3608]
[1731239493703,0.1395,79958.0,79935.0,0.3608]
[1731239493903,0.3608,79952.0,79936.0,0.0668]
[1731239494101,0.5616,79952.0,79936.0,0.0668]
[1731239494306,0.0717,79951.0,79936.0,0.0668]
[1731239495411,0.08481536,79950.0,79936.0,0.0668]
[1731239497111,0.22290076,79949.0,79935.0,0.32751301]
[1731239498603,0.00636919,79948.0,79942.0,0.3608]
[1731239498801,0.00636919,79948.0,79943.0,0.0671]
[1731239499503,0.22290076,79949.0,79943.0,0.0671]
[1731239501402,0.02501403,79950.0,79943.0,0.0671]
[1731239502100,0.03061295,79949.0,79943.0,0.0671]
[1731239502405,0.03061295,79948.0,79943.0,0.0671]
[1731239502601,0.03061295,79947.0,79943.0,0.0671]
[1731239502809,0.41110886,79952.0,79943.0,0.0671]
[1731239503508,0.3608,79952.0,79943.0,0.0671]
[1731239503715,0.3608,79967.0,79944.0,0.3608]
[1731239524630,0.4090201,79978.0,79965.0,0.3608]
[1731239526322,0.03060259,79977.0,79965.0,0.3608]
[1731239526529,0.4090201,79978.0,79966.0,0.0687]
[1731239530726,0.3608,79978.0,79966.0,0.0687]
[1731239530926,0.03060256,79977.0,79966.0,0.0687]
[1731239531135,0.3608,79978.0,79966.0,0.0687]
[1731239531828,0.1366,79986.0,79977.0,0.3608]
[1731239532134,0.05042436,79986.0,79974.0,0.3608]
[1731239532326,0.3608,79992.0,79975.0,0.0671]
[1731239534138,0.1433,79994.0,79985.0,0.3608]
[1731239534339,0.04855789,79994.0,79985.0,0.3608]
[1731239534638,0.1433,80001.0,79985.0,0.3608]
[1731239535033,0.1433,80001.0,79986.0,0.0699]
[1731239535233,0.04846901,80000.0,79986.0,0.0699]
[1731239536232,0.04846901,80000.0,79986.0,0.3699]
[1731239536536,0.3608,80002.0,79986.0,0.3699]
[1731239537033,0.3608,80001.0,79989.0,0.3608]
[1731239537240,0.41006433,80001.0,79990.0,0.44254]
[1731239537433,0.3608,80001.0,79990.0,0.44254]
[1731239537639,0.3608,80001.0,79992.0,0.3608]
[1731239537934,0.3608,80001.0,79993.0,0.26988]
[1731239538329,0.3608,80001.0,79993.0,0.56988]
[1731239539136,0.3608,80001.0,79993.0,0.26988]
[1731239539335,0.3608,80001.0,79992.0,0.3608]
[1731239539531,0.3608,79993.0,79990.0,0.11659154]
[1731239539936,0.3608,79993.0,79987.0,0.49292]
[1731239540236,0.3608,79993.0,79987.0,0.4912]
[1731239540237,0.1395,79992.0,79987.0,0.4912]
[1731239541141,0.2073,79992.0,79987.0,0.4912]
[1731239542234,0.25727523,79992.0,79987.0,0.4912]
[1731239543039,0.25727523,79992.0,79986.0,0.00016218]
[1731239543040,0.61807523,79992.0,79986.0,0.00016218]
[1731239548139,0.03059989,79991.0,79986.0,0.00016218]
[1731239548339,0.03059989,79990.0,79986.0,0.00016218]
[1731239548541,0.03059989,79989.0,79986.0,0.00016218]
[1731239548851,0.03059989,79988.0,79986.0,0.00016218]
[1731239549036,0.00630769,79990.0,79986.0,0.00016218]
[1731239549241,0.0305997,79989.0,79986.0,0.00016218]
[1731239549549,0.0305997,79988.0,79986.0,0.00016218]
[1731239549741,0.0305997,79987.0,79986.0,0.00016218]
[1731239549946,0.00625768,79987.0,79986.0,0.00016218]
[1731239550145,0.61807523,79992.0,79986.0,0.00016218]
[1731239550343,0.0305997,79991.0,79986.0,0.00016218]
[1731239550543,0.0305997,79990.0,79986.0,0.00016218]
[1731239550739,0.00614953,79990.0,79986.0,0.00016218]
[1731239550939,0.03060094,79989.0,79986.0,0.00016218]
[1731239551150,0.00631707,79989.0,79986.0,0.00016218]
[1731239551349,0.61807523,79992.0,79986.0,0.00016218]
[1731239551749,0.03059989,79991.0,79986.0,0.00016218]
[1731239551956,0.03059989,79990.0,79986.0,0.00016218]
[1731239552251,0.03059989,79989.0,79986.0,0.00016218]
[1731239552649,0.61807523,79992.0,79986.0,0.00016218]
[1731239552951,0.03060014,79991.0,79986.0,0.00016218]
[1731239553150,0.03060014,79990.0,79986.0,0.00016218]
[1731239553349,0.03060038,79989.0,79986.0,0.00016218]
[1731239553652,0.61807523,79992.0,79986.0,0.00016218]
[1731239553954,0.0306002,79991.0,79986.0,0.00016218]
[1731239554248,0.0306002,79990.0,79986.0,0.00016218]
[1731239554445,0.02500804,79987.0,79986.0,0.00016218]
[1731239555442,0.61807523,79992.0,79986.0,0.00016218]
[1731239555848,0.55027523,79992.0,79986.0,0.00016218]
[1731239556155,0.47937523,79992.0,79986.0,0.00016218]
[1731239556353,0.41077523,79992.0,79986.0,0.00016218]
[1731239556649,0.04997523,79992.0,79987.0,0.3608]
[1731239556954,0.3608,79993.0,79987.0,0.3608]
[1731239558151,0.41028206,79993.0,79987.0,0.3608]
[1731239559353,0.04948206,79993.0,79986.0,0.00016218]
[1731239559550,0.3608,79999.0,79987.0,0.3608]
[1731239561557,0.06894434,79998.0,79987.0,0.3608]
[1731239561757,0.06894434,79997.0,79986.0,0.36096218]
[1731239561957,0.06894434,79996.0,79986.0,0.36096218]
[1731239562249,0.0689447,79995.0,79986.0,0.36096218]
[1731239562462,0.03059526,79994.0,79986.0,0.36096218]
[1731239562754,0.3608,79999.0,79986.0,0.36096218]
[1731239562755,0.03059526,79993.0,79986.0,0.36096218]
[1731239563050,0.03059526,79992.0,79986.0,0.36096218]
[1731239563258,0.03059526,79991.0,79986.0,0.36096218]
[1731239563557,0.03059526,79990.0,79986.0,0.36096218]
[1731239563743,0.03834947,79998.0,79986.0,0.36096218]
[1731239563950,0.0305953,79997.0,79986.0,0.36096218]
[1731239564145,0.0305953,79996.0,79986.0,0.36096218]
[1731239564355,0.0305953,79995.0,79986.0,0.36096218]
[1731239564546,0.03834947,79998.0,79986.0,0.36096218]
[1731239564547,0.0305953,79994.0,79986.0,0.36096218]
[1731239564747,0.03834947,79998.0,79986.0,0.36096218]
[1731239564748,0.0305953,79993.0,79986.0,0.36096218]
[1731239565050,0.0305953,79992.0,79986.0,0.36096218]
[1731239565250,0.03834947,79998.0,79986.0,0.36096218]
[1731239565552,0.03059511,79997.0,79986.0,0.36096218]
[1731239565752,0.03059511,79996.0,79986.0,0.36096218]
[1731239565955,0.03834947,79998.0,79986.0,0.36096218]
[1731239566452,0.3608,79999.0,79986.0,0.36096218]
[1731239566647,0.03059507,79998.0,79986.0,0.36096218]
[1731239566848,0.3608,79999.0,79986.0,0.36096218]
[1731239567047,0.3608,79999.0,79987.0,0.3608]
[1731239567254,0.03059509,79998.0,79987.0,0.3608]
[1731239567456,0.3608,79999.0,79987.0,0.3608]
[1731239567755,0.03059523,79998.0,79987.0,0.3608]
[1731239568056,0.3608,79999.0,79987.0,0.3608]
[1731239568257,0.03059488,79998.0,79987.0,0.3608]
[1731239568456,0.3608,79999.0,79987.0,0.3608]
[1731239568764,0.03059488,79998.0,79987.0,0.3608]
[1731239569055,0.03059488,79997.0,79986.0,0.00016218]
[1731239569256,0.3608,79999.0,79986.0,0.00016218]
[1731239569257,0.03059488,79996.0,79986.0,0.00016218]
[1731239569459,0.3608,79999.0,79986.0,0.36096218]
[1731239574354,0.3608,79989.0,79986.0,0.00016218]
[1731239577961,0.03059858,79988.0,79986.0,0.02516655]
[1731239578161,0.03059858,79987.0,79986.0,0.02516655]
[1731239578559,0.3608,79989.0,79986.0,0.02516655]
[1731239578560,0.03059858,79988.0,79986.0,0.02516655]
[1731239578760,0.3608,79989.0,79986.0,0.02516655]
[1731239578761,0.03059858,79987.0,79986.0,0.02516655]
[1731239579158,0.03059858,79988.0,79986.0,0.02516655]
[1731239579361,0.03059858,79987.0,79986.0,0.02516655]
[1731239579667,0.41529101,79989.0,79986.0,0.02516655]
[1731239580866,0.03060003,79988.0,79986.0,0.02516655]
[1731239581053,0.41529101,79989.0,79986.0,0.02516655]
[1731239581254,0.03060013,79988.0,79986.0,0.02516655]
[1731239581459,0.41529101,79989.0,79986.0,0.02516655]
[1731239581460,0.03060013,79987.0,79986.0,0.02516655]
[1731239581666,0.41529101,79989.0,79986.0,0.02516655]
[1731239582065,0.03060114,79988.0,79986.0,0.02516655]
[1731239582267,0.41529101,79989.0,79986.0,0.02516655]
[1731239582469,0.03060107,79988.0,79986.0,0.02516655]
[1731239583157,0.06895764,79988.0,79986.0,0.02516655]
[1731239583357,0.03060107,79987.0,79986.0,0.05017092]
[1731239584155,0.06895688,79988.0,79986.0,0.05017092]
[1731239584468,0.06895688,79987.0,79986.0,0.05017092]
[1731239584663,0.4091271,79989.0,79986.0,0.05017092]
[1731239588558,0.41529539,79989.0,79986.0,0.05017092]
[1731239591568,0.03059955,79988.0,79986.0,0.05017092]
[1731239591759,0.03059955,79987.0,79986.0,0.05017092]
[1731239593065,0.03835633,79988.0,79986.0,0.05017092]
[1731239593066,0.06895588,79988.0,79986.0,0.05017092]
[1731239593267,0.06895588,79987.0,79986.0,0.05017092]
[1731239593475,0.06895588,79988.0,79986.0,0.05017092]
[1731239593661,0.06895588,79987.0,79986.0,0.05017092]
[1731239593861,0.39139955,79987.0,79970.0,0.00187572]
[1731239594065,0.3608,79971.0,79958.0,0.35667572]
[1731239594370,0.15469955,79970.0,79958.0,0.35667572]
[1731239594563,0.03059955,79969.0,79958.0,0.35667572]
[1731239594767,0.1241,79970.0,79958.0,0.35667572]
[1731239595073,0.00013322,79969.0,79958.0,0.35667572]
[1731239596666,0.03060584,79968.0,79958.0,0.35667572]
[1731239596873,0.02384903,79970.0,79958.0,0.35667572]
[1731239597173,0.03060584,79969.0,79958.0,0.35667572]
[1731239597469,0.03060584,79968.0,79958.0,0.35667572]
[1731239597677,0.00639936,79971.0,79966.0,0.3608]
[1731239597866,0.3608,79970.0,79958.0,0.35667572]
[1731239598063,0.00616429,79971.0,79966.0,0.3608]
[1731239598271,0.3608,79978.0,79966.0,0.3608]
[1731239598575,0.03060377,79977.0,79966.0,0.3608]
[1731239598775,0.03060377,79976.0,79966.0,0.3608]
[1731239598971,0.36707057,79978.0,79966.0,0.3608]
[1731239599176,0.36707057,79978.0,79967.0,0.1266]
[1731239602275,0.00627057,79978.0,79967.0,0.1266]
[1731239602475,0.3608,79978.0,79967.0,0.1266]
[1731239602681,0.3671128,79978.0,79967.0,0.15161031]
[1731239602976,0.0063128,79978.0,79973.0,0.3608]
[1731239603175,0.17304732,79983.0,79973.0,0.3608]
[1731239603570,0.1792157,79983.0,79973.0,0.3608]
[1731239604765,0.17304732,79983.0,79973.0,0.3608]
[1731239605078,0.02500729,79987.0,79973.0,0.3608]
[1731239606566,0.3608,79986.0,79973.0,0.3608]
[1731239606876,0.02500729,79987.0,79973.0,0.3608]
[1731239607671,0.3608,79986.0,79973.0,0.3608]
[1731239608079,0.02500729,79987.0,79973.0,0.3608]
[1731239609070,0.02500729,79987.0,79986.0,0.3608]
[1731239609378,0.11997327,79994.0,79980.0,0.3608]
[1731239609379,0.05657327,79994.0,79980.0,0.3608]
[1731239609677,0.02500574,79995.0,79981.0,0.0538]
[1731239609882,0.02500574,79995.0,79982.0,0.1153]
[1731239612979,0.02500574,79995.0,79982.0,0.0578]
[1731239613574,0.02500574,79995.0,79967.0,0.22645031]
[1731239613575,0.3608,79986.0,79967.0,0.02501031]
[1731239613881,0.1103,79985.0,79967.0,0.02501031]
[1731239614672,0.03060109,79984.0,79967.0,0.02501031]
[1731239614872,0.03060109,79983.0,79967.0,0.02501031]
[1731239615073,0.03060109,79982.0,79967.0,0.02501031]
[1731239615277,0.03060109,79981.0,79967.0,0.02501031]
[1731239615481,0.03060109,79980.0,79967.0,0.07521868]
[1731239615674,0.3608,79986.0,79967.0,0.02501031]
[1731239616373,0.3608,80004.0,79985.0,0.3608]
[1731239616574,0.3608,80004.0,79986.0,0.31784]
[1731239616776,0.3608,80004.0,79986.0,0.37724]
[1731239616970,0.3608,80004.0,79986.0,0.67724]
[1731239617276,0.3608,80004.0,79987.0,0.69264]
[1731239618882,0.3608,80004.0,79988.0,0.3608]
[1731239619783,0.3608,80004.0,79987.0,0.6944]
[1731239619983,0.3608,80004.0,79987.0,0.69264]
[1731239620283,0.3608,80004.0,79987.0,0.4912]
[1731239620781,0.1149,80003.0,79987.0,0.4912]
[1731239620984,0.3608,79997.0,79987.0,0.4912]
[1731239621179,0.1149,80003.0,79992.0,0.3608]
[1731239622178,0.1149,80003.0,79987.0,0.49292]
[1731239622380,0.36267572,80005.0,79992.0,0.3608]
[1731239622580,0.36267572,80005.0,79987.0,0.79292]
[1731239622775,0.3608,79989.0,79987.0,0.7912]
[1731239622980,0.36267572,80005.0,79988.0,0.3608]
[1731239623279,0.36267572,80005.0,79991.0,0.3608]
[1731239623481,0.36267572,80005.0,79987.0,0.3]
[1731239623888,0.36267572,80005.0,79994.0,0.3608]
[1731239625982,0.36267572,80005.0,79986.0,0.1758]
[1731239626183,0.36267572,80005.0,79986.0,0.4758]
[1731239626389,0.36267572,80005.0,79986.0,0.52447216]
[1731239626583,0.36267572,80005.0,79994.0,0.3608]
[1731239626783,0.3608,79995.0,79986.0,0.52619216]
[1731239626996,0.36267572,80005.0,79986.0,0.4758]
[1731239627282,0.36267572,80005.0,79986.0,0.53849321]
[1731239627690,0.36267572,80005.0,79994.0,0.3608]
[1731239627887,0.36267572,80005.0,79986.0,0.54033321]
[1731239628082,0.36267572,80005.0,79986.0,0.53849321]
[1731239628479,0.36898644,80005.0,79986.0,0.1758]
[1731239628686,0.1113,80004.0,79986.0,0.1758]
[1731239629187,0.1113,80004.0,79986.0,0.20080437]
[1731239629188,0.3608,79993.0,79986.0,0.20080437]
[1731239629600,0.1113,80004.0,79986.0,0.20080437]
[1731239629782,0.3608,79993.0,79986.0,0.20080437]
[1731239630383,0.36267572,80005.0,79986.0,0.20080437]
[1731239630692,0.36267572,80005.0,79994.0,0.3608]
[1731239631490,0.3608,79995.0,79986.0,0.20080437]
[1731239631797,0.36267572,80005.0,79986.0,0.20080437]
[1731239631996,0.3608,79993.0,79986.0,0.20080437]
[1731239632891,0.36267572,80005.0,79991.0,0.3608]
[1731239635090,0.36267572,80005.0,79986.0,0.20080437]
[1731239635487,0.36267572,80005.0,79991.0,0.3608]
[1731239635992,0.36267572,80005.0,79989.0,0.3608]
[1731239636206,0.36267572,80005.0,79986.0,0.20080437]
[1731239636897,0.36267572,80005.0,79989.0,0.3608]
[1731239640504,0.36267572,80005.0,79986.0,0.20080437]
[1731239640699,0.36267572,80005.0,79989.0,0.3608]
[1731239641295,0.36259164,80005.0,79989.0,0.3608]
[1731239641696,0.3608,80005.0,79989.0,0.3608]
[1731239644501,0.03059424,80004.0,79989.0,0.3608]
[1731239644698,0.3608,80005.0,79989.0,0.3608]
[1731239644699,0.03059424,80003.0,79989.0,0.3608]
[1731239644895,0.03059424,80002.0,79989.0,0.3608]
[1731239645096,0.3608,80005.0,79989.0,0.3608]
[1731239645405,0.057,80001.0,79989.0,0.3608]
[1731239645703,0.0582,80000.0,79989.0,0.3608]
[1731239647699,0.3608,80005.0,79989.0,0.3608]
[1731239647901,0.06894178,80004.0,79989.0,0.3608]
[1731239648099,0.06894178,80004.0,79990.0,0.0585]
[1731239648807,0.3608,80005.0,79990.0,0.0585]
[1731239648808,0.03059412,80003.0,79990.0,0.0585]
[1731239648997,0.03059412,80002.0,79990.0,0.0585]
[1731239649198,0.03059412,80001.0,79990.0,0.0585]
[1731239649399,0.03059412,80000.0,79990.0,0.0585]
[1731239649602,0.03059412,79999.0,79990.0,0.0585]
[1731239649804,0.3608,80005.0,79990.0,0.0585]
[1731239650106,0.03059213,80004.0,79991.0,0.4912]
[1731239650408,0.3608,80005.0,79991.0,0.4912]
[1731239650912,0.03059212,80004.0,79991.0,0.4912]
[1731239651100,0.3608,80005.0,79991.0,0.4912]
[1731239651904,0.03059278,80004.0,79991.0,0.4912]
[1731239652211,0.03059278,80003.0,79991.0,0.4912]
[1731239652412,0.3608,80005.0,79991.0,0.4912]
[1731239655114,0.3608,80005.0,79992.0,0.03712889]
[1731239655404,0.3608,80005.0,79991.0,0.49292]
[1731239655610,0.3608,80005.0,79992.0,0.4912]
[1731239656009,0.3608,80005.0,79992.0,0.7912]
[1731239658607,0.3608,80005.0,79992.0,0.4912]
[1731239659011,0.3608,80005.0,79992.0,0.7912]
[1731239660405,0.06153301,80015.0,79992.0,0.7912]
[1731239660605,0.3608,80006.0,79994.0,0.3608]
[1731239661707,0.0551,80005.0,79994.0,0.3608]
[1731239664118,0.0551,80005.0,79993.0,0.49292]
[1731239664417,0.0551,80005.0,79994.0,0.3608]
[1731239667215,0.0551,80005.0,79994.0,0.42156222]
[1731239667619,0.03059225,80004.0,79994.0,0.42156222]
[1731239667807,0.03059225,80003.0,79994.0,0.42156222]
[1731239668012,0.0551,80005.0,79994.0,0.42156222]
[1731239668013,0.03059225,80002.0,79994.0,0.42156222]
[1731239668211,0.03059225,80001.0,79994.0,0.42156222]
[1731239668420,0.03059225,80000.0,79994.0,0.42156222]
[1731239668616,0.03059225,79999.0,79994.0,0.42156222]
[1731239668812,0.03059214,79998.0,79994.0,0.42156222]